{"text_format":"3","workbook":"xlsx","n_sheets":1,"sheets":["Forslag"],"not_rendered":{"images":1,"defined_names":20},"read":"whole","date_system":"1900"}

{"sheet":"Forslag","index":0,"n_rows":39,"n_cols":7,"rows_kept":39,"merged":[[0,1,3,1],[0,3,0,6],[1,4,1,6],[2,4,2,6],[32,3,35,4],[36,3,36,6],[37,3,37,5],[38,3,38,5]]}
[{"$nulls":3},"BYGGEFORSLAG"]
[{"$nulls":3},"Firmanavn","| Angiv firmaadresse i denne celle"]
[{"$nulls":3},"Telefonnummer","| Angiv firmaets faxnummer og kontaktmailadresse i denne celle"]
[{"$nulls":3},"ANTAL","BESKRIVELSE","ENHEDSPRIS","BELØB"]
[null,"KUNDE",null,10,"Vare 1",{"v":165,"d":"kr. 165.00"},{"$f":"IFERROR(Linjeelementer[[#This Row],[ANTAL]]*Linjeelementer[[#This Row],[ENHEDSPRIS]], \"\")","v":{"v":1650,"d":"kr. 1,650.00"}}]
[null,"Angiv kundenavn i denne celle",null,21,"Vare 2",{"v":40,"d":"kr. 40.00"},{"$f":"IFERROR(Linjeelementer[[#This Row],[ANTAL]]*Linjeelementer[[#This Row],[ENHEDSPRIS]], \"\")","v":{"v":840,"d":"kr. 840.00"}}]
[null,"ESTIMATNR.",null,5,"Vare 3",{"v":10.5,"d":"kr. 10.50"},{"$f":"IFERROR(Linjeelementer[[#This Row],[ANTAL]]*Linjeelementer[[#This Row],[ENHEDSPRIS]], \"\")","v":{"v":52.5,"d":"kr. 52.50"}}]
[null,"C-1234",null,164,"Vare 4",{"v":2.75,"d":"kr. 2.75"},{"$f":"IFERROR(Linjeelementer[[#This Row],[ANTAL]]*Linjeelementer[[#This Row],[ENHEDSPRIS]], \"\")","v":{"v":451,"d":"kr. 451.00"}}]
[null,"DATO",null,6,"Vare 5",{"v":12,"d":"kr. 12.00"},{"$f":"IFERROR(Linjeelementer[[#This Row],[ANTAL]]*Linjeelementer[[#This Row],[ENHEDSPRIS]], \"\")","v":{"v":72,"d":"kr. 72.00"}}]
[null,{"$f":"TODAY()","v":"2018-11-14"},null,18,"Vare 6",{"v":5.5,"d":"kr. 5.50"},{"$f":"IFERROR(Linjeelementer[[#This Row],[ANTAL]]*Linjeelementer[[#This Row],[ENHEDSPRIS]], \"\")","v":{"v":99,"d":"kr. 99.00"}}]
[null,"ADRESSE",null,1,"Vare 7",{"v":25,"d":"kr. 25.00"},{"$f":"IFERROR(Linjeelementer[[#This Row],[ANTAL]]*Linjeelementer[[#This Row],[ENHEDSPRIS]], \"\")","v":{"v":25,"d":"kr. 25.00"}}]
[null,"Angiv kundens adresse i denne celle",{"$nulls":4},{"$f":"IFERROR(Linjeelementer[[#This Row],[ANTAL]]*Linjeelementer[[#This Row],[ENHEDSPRIS]], \"\")","v":{"v":0,"d":"kr. 0.00"}}]
[null,"POSTNUMMER/BY",{"$nulls":4},{"$f":"IFERROR(Linjeelementer[[#This Row],[ANTAL]]*Linjeelementer[[#This Row],[ENHEDSPRIS]], \"\")","v":{"v":0,"d":"kr. 0.00"}}]
[null,"Angiv kundens postnummer og by i denne celle",{"$nulls":4},{"$f":"IFERROR(Linjeelementer[[#This Row],[ANTAL]]*Linjeelementer[[#This Row],[ENHEDSPRIS]], \"\")","v":{"v":0,"d":"kr. 0.00"}}]
[null,"TELEFON",{"$nulls":4},{"$f":"IFERROR(Linjeelementer[[#This Row],[ANTAL]]*Linjeelementer[[#This Row],[ENHEDSPRIS]], \"\")","v":{"v":0,"d":"kr. 0.00"}}]
[null,"Angiv kundens telefonnummer i denne celle",{"$nulls":4},{"$f":"IFERROR(Linjeelementer[[#This Row],[ANTAL]]*Linjeelementer[[#This Row],[ENHEDSPRIS]], \"\")","v":{"v":0,"d":"kr. 0.00"}}]
[null,"MAILADRESSE",{"$nulls":4},{"$f":"IFERROR(Linjeelementer[[#This Row],[ANTAL]]*Linjeelementer[[#This Row],[ENHEDSPRIS]], \"\")","v":{"v":0,"d":"kr. 0.00"}}]
[null,"Angiv kundens mailadresse i denne celle",{"$nulls":4},{"$f":"IFERROR(Linjeelementer[[#This Row],[ANTAL]]*Linjeelementer[[#This Row],[ENHEDSPRIS]], \"\")","v":{"v":0,"d":"kr. 0.00"}}]
[null,"SÆLGER",{"$nulls":4},{"$f":"IFERROR(Linjeelementer[[#This Row],[ANTAL]]*Linjeelementer[[#This Row],[ENHEDSPRIS]], \"\")","v":{"v":0,"d":"kr. 0.00"}}]
[null,"Angiv sælger i denne celle",{"$nulls":4},{"$f":"IFERROR(Linjeelementer[[#This Row],[ANTAL]]*Linjeelementer[[#This Row],[ENHEDSPRIS]], \"\")","v":{"v":0,"d":"kr. 0.00"}}]
[null,"PROJEKT",{"$nulls":4},{"$f":"IFERROR(Linjeelementer[[#This Row],[ANTAL]]*Linjeelementer[[#This Row],[ENHEDSPRIS]], \"\")","v":{"v":0,"d":"kr. 0.00"}}]
[null,"Angiv projektnavn i denne celle",{"$nulls":4},{"$f":"IFERROR(Linjeelementer[[#This Row],[ANTAL]]*Linjeelementer[[#This Row],[ENHEDSPRIS]], \"\")","v":{"v":0,"d":"kr. 0.00"}}]
[null,"UDARBEJDET AF:",{"$nulls":4},{"$f":"IFERROR(Linjeelementer[[#This Row],[ANTAL]]*Linjeelementer[[#This Row],[ENHEDSPRIS]], \"\")","v":{"v":0,"d":"kr. 0.00"}}]
[null,"Angiv navn på personen, der har udarbejdet forslaget, i denne celle",{"$nulls":4},{"$f":"IFERROR(Linjeelementer[[#This Row],[ANTAL]]*Linjeelementer[[#This Row],[ENHEDSPRIS]], \"\")","v":{"v":0,"d":"kr. 0.00"}}]
[null,"ATT.",{"$nulls":4},{"$f":"IFERROR(Linjeelementer[[#This Row],[ANTAL]]*Linjeelementer[[#This Row],[ENHEDSPRIS]], \"\")","v":{"v":0,"d":"kr. 0.00"}}]
[null,"Angiv navn på personen, forslaget skal adresseres til, i denne celle",{"$nulls":4},{"$f":"IFERROR(Linjeelementer[[#This Row],[ANTAL]]*Linjeelementer[[#This Row],[ENHEDSPRIS]], \"\")","v":{"v":0,"d":"kr. 0.00"}}]
[null,"BETALINGSBETINGELSER",{"$nulls":4},{"$f":"IFERROR(Linjeelementer[[#This Row],[ANTAL]]*Linjeelementer[[#This Row],[ENHEDSPRIS]], \"\")","v":{"v":0,"d":"kr. 0.00"}}]
[null,"Netto 30",{"$nulls":4},{"$f":"IFERROR(Linjeelementer[[#This Row],[ANTAL]]*Linjeelementer[[#This Row],[ENHEDSPRIS]], \"\")","v":{"v":0,"d":"kr. 0.00"}}]
[null,"FORFALDSDATO",{"$nulls":4},{"$f":"IFERROR(Linjeelementer[[#This Row],[ANTAL]]*Linjeelementer[[#This Row],[ENHEDSPRIS]], \"\")","v":{"v":0,"d":"kr. 0.00"}}]
[null,{"$f":"TODAY()+30","v":"2018-12-14"},{"$nulls":4},{"$f":"IFERROR(Linjeelementer[[#This Row],[ANTAL]]*Linjeelementer[[#This Row],[ENHEDSPRIS]], \"\")","v":{"v":0,"d":"kr. 0.00"}}]
[{"$nulls":5},"SUBTOTAL",{"$f":"SUBTOTAL(109,Linjeelementer[BELØB])","v":{"v":3189.5,"d":"kr. 3,189.50"}}]
[{"$nulls":3},"DETTE FORSLAG OMFATTER FØLGENDE BETINGELSER:",null,"MOMSTAKST ",{"v":0.0775,"d":"7.75%"}]
[{"$nulls":3},"Angiv betingelser her",null,"MOMS ",{"$f":"IFERROR(Subtotal*Momssats, \"\")","v":{"v":247.18625,"d":"kr. 247.19"}}]
[{"$nulls":5},"ANDET "]
[{"$nulls":5},"TOTAL",{"$f":"IFERROR(Subtotal+G33+Andet, \"\")","v":{"v":3436.68625,"d":"kr. 3,436.69"}}]
[]
[{"$nulls":3},"Signer nedenfor for at acceptere tilbud:"]
[]
[{"$nulls":3},"Bemyndiget repr.",null,null,"Dato"]